bitfinex-derivatives/quotes_BTCF0:USTF0_20250213
["timestamp","ask_amount","ask_price","bid_price","bid_amount"]
[1739457541641,0.00015705,95506.0,95505.0,0.2093824]
[1739457541841,7e-08,95513.0,95512.0,0.209367]
[1739457542034,0.3608,95555.0,95512.0,0.209367]
[1739457542035,0.1098,95555.0,95512.0,0.3608]
[1739457542238,0.1098,95555.0,95542.0,0.3608]
[1739457542448,0.0877,95562.0,95542.0,0.3608]
[1739457542647,0.0877,95562.0,95552.0,0.2092794]
[1739457542833,0.3608,95563.0,95556.0,0.2092698]
[1739457543145,0.3608,95563.0,95543.0,1.29]
[1739457543146,0.3608,95561.0,95547.0,0.00015705]
[1739457543333,0.3608,95549.0,95511.0,0.3608]
[1739457543534,0.3608,95549.0,95508.0,0.5701747]
[1739457543535,0.2093177,95535.0,95508.0,0.5701747]
[1739457543740,0.2093351,95527.0,95508.0,0.5701747]
[1739457543941,0.3608,95526.0,95500.0,0.3608]
[1739457544141,0.570164,95514.0,95488.0,0.4474]
[1739457544347,0.29201813,95510.0,95505.0,0.002]
[1739457544550,0.2094156,95490.0,95485.0,0.00157074]
[1739457544747,0.209388,95503.0,95485.0,0.00157074]
[1739457544939,0.3608,95506.0,95485.0,0.00157074]
[1739457545138,0.2094076,95494.0,95492.0,0.18719524]
[1739457545338,0.3608,95497.0,95492.0,0.18719524]
[1739457545742,0.2094063,95495.0,95492.0,0.18719524]
[1739457546141,0.3608,95497.0,95492.0,0.18719524]
[1739457546444,0.2094063,95495.0,95492.0,0.18719524]
[1739457546640,0.001,95494.0,95492.0,0.19319524]
[1739457547145,0.2094087,95493.0,95492.0,0.18719524]
[1739457547348,0.2094087,95493.0,95492.0,0.19319524]
[1739457547545,0.2094087,95493.0,95492.0,0.19819524]
[1739457547745,0.3608,95494.0,95492.0,0.19819524]
[1739457548337,0.6618,95494.0,95485.0,0.24819296]
[1739457548546,0.2094491,95475.0,95443.0,0.1022]
[1739457548746,0.5702658,95467.0,95436.0,0.3608]
[1739457549048,0.3608,95459.0,95437.0,0.1022]
[1739457549244,0.00015714,95463.0,95447.0,0.3608]
[1739457549440,0.00015714,95463.0,95450.0,0.2095016]
[1739457549650,0.00015714,95463.0,95446.0,0.3608]
[1739457549845,0.00015714,95463.0,95456.0,0.2094883]
[1739457550051,0.00015714,95463.0,95454.0,0.3608]
[1739457550242,0.00015714,95463.0,95450.0,0.29201813]
[1739457550243,0.00015714,95463.0,95450.0,0.2095024]
[1739457550438,0.00015714,95463.0,95448.0,0.3608]
[1739457550643,0.00015714,95463.0,95461.0,0.2094768]
[1739457551550,0.00015714,95463.0,95458.0,0.1077]
[1739457551750,0.00015714,95463.0,95446.0,0.2095116]
[1739457551751,0.3608,95461.0,95442.0,0.00056]
[1739457551950,0.3608,95461.0,95450.0,0.001]
[1739457552149,0.3608,95461.0,95392.0,0.0524072]
[1739457552150,0.7216,95451.0,95395.0,0.3608]
[1739457552449,0.65281813,95440.0,95396.0,0.3608]
[1739457552640,0.3608,95432.0,95404.0,0.2096021]
[1739457552841,0.3608,95432.0,95412.0,0.3608]
[1739457553045,0.3608,95432.0,95414.0,0.3608]
[1739457553249,0.00015714,95435.0,95426.0,0.2095551]
[1739457553444,0.00015714,95435.0,95434.0,0.2095381]
[1739457553646,4e-08,95435.0,95434.0,0.2095381]
[1739457554255,0.001,95460.0,95440.0,0.209525]
[1739457554449,0.001,95460.0,95459.0,1.29]
[1739457554944,0.001,95460.0,95447.0,0.3608]
[1739457555259,0.3608,95473.0,95447.0,0.3608]
[1739457555557,0.00015714,95463.0,95447.0,0.5703095]
[1739457555853,0.013,95460.0,95450.0,0.50151993]
[1739457556057,0.013,95460.0,95459.0,0.5702833]
[1739457556442,0.002,95473.0,95459.0,0.6608]
[1739457556644,0.002,95473.0,95472.0,0.3608]
[1739457557152,0.002,95473.0,95472.0,0.6608]
[1739457557353,0.3608,95496.0,95472.0,0.3608]
[1739457557742,0.00157113,95502.0,95472.0,0.3608]
[1739457557954,0.3608,95499.0,95472.0,0.3608]
[1739457558145,0.2093995,95498.0,95481.0,0.3608]
[1739457558353,0.00015714,95497.0,95481.0,0.3608]
[1739457558658,0.00015714,95497.0,95489.0,0.3608]
[1739457558854,0.00015714,95497.0,95491.0,0.2094117]
[1739457559155,0.00015714,95497.0,95489.0,0.14070585]
[1739457559857,0.05093425,95496.0,95489.0,0.14070585]
[1739457560056,0.05093425,95496.0,95483.0,0.2094285]
[1739457560354,0.3608,95491.0,95471.0,0.3608]
[1739457560558,0.3608,95473.0,95470.0,0.1109]
[1739457560755,0.3608,95483.0,95470.0,0.1109]
[1739457561055,0.3608,95471.0,95470.0,0.1109]
[1739457561554,0.3608,95471.0,95434.0,0.1379]
[1739457561756,0.3608,95467.0,95455.0,0.2094918]
[1739457561954,0.178754,95467.0,95455.0,0.2094918]
[1739457562254,0.19104217,95491.0,95464.0,0.209471]
[1739457562651,0.3608,95483.0,95470.0,0.007]
[1739457562962,0.3608,95475.0,95470.0,0.003]
[1739457563161,0.2094503,95474.0,95470.0,0.003]
[1739457563354,0.2094569,95471.0,95470.0,0.003]
[1739457564156,0.3608,95475.0,95470.0,0.003]
[1739457564460,0.3608,95475.0,95461.0,0.00015714]
[1739457564461,0.2094509,95474.0,95461.0,0.00015714]
[1739457564946,0.3608,95475.0,95461.0,0.00015714]
[1739457565153,0.38255766,95490.0,95462.0,0.3608]
[1739457565154,0.003,95471.0,95462.0,0.3608]
[1739457565351,0.003,95471.0,95470.0,0.3608]
[1739457565546,0.38255766,95490.0,95470.0,0.3608]
[1739457565765,0.38255766,95490.0,95486.0,0.3608]
[1739457566256,0.38255766,95490.0,95482.0,0.3608]
[1739457566449,0.38255766,95490.0,95484.0,0.3608]
[1739457566764,0.00064,95525.0,95508.0,0.2093758]
[1739457566961,0.1339,95533.0,95516.0,0.2093564]
[1739457567260,0.3608,95545.0,95508.0,0.7216]
[1739457567261,0.3623704,95554.0,95520.0,0.2093482]
[1739457567448,0.2092856,95550.0,95526.0,0.3608]
[1739457567656,0.3623704,95554.0,95529.0,0.2093297]
[1739457567860,0.3623704,95554.0,95532.0,0.5701231]
[1739457568162,0.3623704,95554.0,95532.0,0.3608]
[1739457568368,0.3623704,95554.0,95533.0,0.3608]
[1739457568863,0.3608,95546.0,95527.0,0.209334]
[1739457569155,0.27464607,95534.0,95527.0,0.209334]
[1739457569361,0.27664607,95534.0,95533.0,0.3608]
[1739457569758,0.3623704,95554.0,95533.0,0.3]
[1739457569965,0.3623704,95554.0,95540.0,0.3608]
[1739457569966,0.0015704,95554.0,95540.0,0.3608]
[1739457570263,0.0015704,95554.0,95524.0,0.1436]
[1739457570264,0.3608,95546.0,95525.0,0.2093384]
[1739457570559,0.3608,95546.0,95524.0,0.1436]
[1739457570560,0.3608,95538.0,95524.0,0.1436]
[1739457570756,0.3608,95546.0,95524.0,0.1436]
[1739457570958,0.18411211,95554.0,95532.0,0.29201813]
[1739457571164,0.18411211,95554.0,95538.0,0.2093081]
[1739457571357,0.001,95534.0,95533.0,0.1372]
[1739457571559,0.001,95534.0,95525.0,0.3608]
[1739457571860,0.3608,95539.0,95525.0,0.3608]
[1739457572461,0.001,95534.0,95525.0,0.3608]
[1739457572860,0.001,95534.0,95524.0,0.002]
[1739457572861,0.3608,95530.0,95524.0,0.002]
[1739457573059,0.001,95534.0,95524.0,0.002]
[1739457573270,0.002,95534.0,95520.0,0.29201813]
[1739457573462,0.002,95534.0,95514.0,0.2093614]
[1739457573651,0.3608,95531.0,95511.0,0.1372]
[1739457573857,0.3608,95519.0,95500.0,0.29201813]
[1739457574063,0.3608,95531.0,95521.0,0.2093458]
[1739457574260,0.3608,95531.0,95525.0,0.002]
[1739457574954,0.3608,95531.0,95525.0,0.001]
[1739457575867,0.3608,95531.0,95525.0,0.003]
[1739457576167,0.3608,95531.0,95529.0,0.2093287]
[1739457576569,0.3608,95548.0,95526.0,0.4962]
[1739457576868,0.3608,95548.0,95526.0,0.3447342]
[1739457577061,0.3608,95548.0,95533.0,0.2093207]
[1739457577261,0.3608,95548.0,95530.0,0.29201813]
[1739457577459,0.3608,95548.0,95537.0,0.2093111]
[1739457577660,0.3608,95548.0,95527.0,0.3608]
[1739457577867,0.3608,95548.0,95526.0,0.1354]
[1739457577868,0.3608,95540.0,95528.0,0.2093317]
[1739457578361,0.3608,95532.0,95525.0,0.002]
[1739457578562,0.3608,95532.0,95526.0,0.2093363]
[1739457578765,0.3608,95540.0,95527.0,0.001]
[1739457578966,0.3608,95540.0,95533.0,0.2093188]
[1739457579154,0.3608,95540.0,95539.0,0.2093078]
[1739457579462,0.3608,95540.0,95530.0,0.29201813]
[1739457579664,0.3608,95540.0,95525.0,0.003]
[1739457579866,0.00015701,95544.0,95525.0,0.003]
[1739457580060,0.3608,95537.0,95530.0,0.29201813]
[1739457580266,0.3608,95542.0,95541.0,0.2093034]
[1739457580670,0.00015701,95544.0,95543.0,0.209299]
[1739457581561,0.00015701,95544.0,95543.0,0.570099]
[1739457581873,0.3608,95564.0,95543.0,0.570099]
[1739457581874,0.3608,95564.0,95558.0,0.209264]
[1739457582067,0.15476939,95568.0,95567.0,0.2092465]
[1739457582769,0.15476939,95568.0,95554.0,0.65337813]
[1739457582965,0.15476939,95568.0,95566.0,0.2092486]
[1739457584969,0.16176939,95568.0,95566.0,0.2092486]
[1739457585870,0.16876939,95568.0,95566.0,0.2102486]
[1739457586066,0.01557001,95568.0,95566.0,0.2102486]
[1739457586371,0.014,95568.0,95566.0,0.2102486]
[1739457586667,1e-08,95577.0,95576.0,0.2092268]
[1739457586876,1e-08,95577.0,95567.0,0.3614]
[1739457587073,1e-08,95577.0,95567.0,0.3608]
[1739457587368,1e-08,95577.0,95576.0,0.5700268]
[1739457587760,1e-08,95577.0,95576.0,0.2092268]
[1739457588465,1e-08,95577.0,95576.0,0.5700268]
[1739457588670,0.00156962,95588.0,95587.0,0.2092027]
[1739457588973,0.00156962,95588.0,95587.0,0.5700027]
[1739457589177,0.15319938,95595.0,95594.0,0.2091874]
[1739457589862,0.15319938,95595.0,95585.0,0.00015692]
[1739457590066,0.3608,95588.0,95586.0,0.2092049]
[1739457590468,0.3638,95588.0,95586.0,0.2092049]
[1739457591073,0.003,95588.0,95587.0,0.3608]
[1739457591373,0.007,95588.0,95587.0,0.3608]
[1739457591870,0.15319938,95595.0,95594.0,0.2091874]
[1739457592061,0.003,95595.0,95594.0,0.2091874]
[1739457592266,0.00015692,95604.0,95599.0,0.2091765]
[1739457594678,0.20932392,95604.0,95599.0,0.2091765]
[1739457594868,0.20932392,95604.0,95599.0,0.2101765]
[1739457595064,0.00015692,95604.0,95599.0,0.2101765]
[1739457595369,0.00015692,95604.0,95599.0,0.2111765]
[1739457595570,1e-07,95600.0,95599.0,0.2111765]
[1739457595879,1e-07,95600.0,95599.0,0.2121765]
[1739457596073,0.1475,95622.0,95599.0,1.296]
[1739457596271,0.1475,95622.0,95614.0,0.2091436]
[1739457596781,0.3608,95623.0,95608.0,0.3608]
[1739457596982,0.3608,95623.0,95613.0,0.2091448]
[1739457597372,0.2091294,95621.0,95613.0,0.2091448]
[1739457597574,0.3608,95623.0,95613.0,0.2091448]
[1739457598278,0.00456928,95615.0,95613.0,0.2091448]
[1739457598978,0.00456928,95615.0,95606.0,0.2091605]
[1739457598979,0.3608,95614.0,95606.0,0.2091605]
[1739457599279,0.00456928,95615.0,95614.0,0.2091436]
[1739457600178,0.003,95615.0,95614.0,0.2091436]
[1739457600372,0.003,95615.0,95614.0,0.5699436]
[1739457600682,0.00015692,95624.0,95623.0,0.209124]
[1739457601377,0.00015692,95624.0,95614.0,0.36136]
[1739457601583,0.00015692,95624.0,95622.0,0.2091244]
[1739457602581,0.15319938,95635.0,95634.0,0.2090999]
[1739457602778,0.15319938,95635.0,95614.0,0.3608]
[1739457602978,0.3608,95615.0,95599.0,0.1453]
[1739457603175,0.3608,95607.0,95603.0,0.2091667]
[1739457603477,0.3608,95626.0,95600.0,0.3608]
[1739457603681,0.00010103,95615.0,95600.0,0.54993162]
[1739457603885,0.00010103,95615.0,95609.0,0.2091546]
[1739457604087,0.00010103,95615.0,95613.0,0.2091449]
[1739457604777,3e-08,95615.0,95613.0,0.8699449]
[1739457604979,3e-08,95615.0,95614.0,0.1416]
[1739457605376,3e-08,95615.0,95614.0,0.4416]
[1739457605574,0.00300003,95615.0,95614.0,1.7316]
[1739457605779,0.00281427,95636.0,95614.0,1.7316]
[1739457605985,0.00281427,95636.0,95635.0,0.2090977]
[1739457606783,0.00281427,95636.0,95629.0,0.3608]
[1739457606973,0.3608,95632.0,95626.0,0.00015692]
[1739457607484,0.3608,95632.0,95608.0,0.2091554]
[1739457607485,0.2091364,95618.0,95608.0,0.2091554]
[1739457607683,0.2091436,95614.0,95606.0,0.3608]
[1739457607879,0.001,95615.0,95606.0,0.3608]
[1739457608180,0.3608,95614.0,95600.0,0.18913162]
[1739457608483,0.001,95615.0,95613.0,0.2091454]
[1739457608784,0.00015692,95617.0,95615.0,0.2091394]
[1739457609091,2e-08,95618.0,95615.0,0.2091394]
[1739457609281,2e-08,95618.0,95617.0,0.2091371]
[1739457609479,0.3608,95653.0,95633.0,0.2091021]
[1739457609785,0.3608,95653.0,95633.0,0.5699021]
[1739457610286,0.3608,95653.0,95624.0,0.18913162]
[1739457610287,0.3608,95638.0,95624.0,0.00015692]
[1739457611183,0.3608,95627.0,95624.0,0.00015692]
[1739457611486,0.5699153,95627.0,95624.0,0.00015692]
[1739457611685,0.5699153,95627.0,95594.0,0.286]
[1739457611686,0.422,95626.0,95600.0,0.18913162]
[1739457611884,0.3608,95619.0,95610.0,0.2091521]
[1739457612083,0.36140001,95627.0,95600.0,0.18913162]
[1739457612084,0.3608,95627.0,95609.0,0.18913162]
[1739457612391,0.3608,95627.0,95619.0,0.2091312]
[1739457612593,0.3608,95627.0,95621.0,0.2091276]
[1739457612776,0.13485692,95633.0,95615.0,0.3608]
[1739457612983,0.13485692,95633.0,95626.0,0.3608]
[1739457613577,0.00015692,95633.0,95630.0,0.2091077]
[1739457613781,0.24669305,95633.0,95630.0,0.2091077]
[1739457614191,0.24669305,95633.0,95626.0,0.35010158]
[1739457614576,0.001,95627.0,95626.0,0.55921898]
[1739457615183,0.04856331,95633.0,95626.0,0.35010158]
[1739457615895,0.41165965,95632.0,95615.0,0.3618]
[1739457616087,0.41165965,95632.0,95618.0,0.2091349]
[1739457616297,0.3608,95629.0,95615.0,0.3618]
[1739457616485,0.3608,95629.0,95622.0,0.2091259]
[1739457616995,0.3608,95629.0,95623.0,0.209122]
[1739457617194,0.3608,95629.0,95615.0,0.001]
[1739457617491,0.3608,95616.0,95615.0,0.001]
[1739457618195,0.3608,95616.0,95615.0,0.002]
[1739457618589,0.3608,95616.0,95615.0,0.001]
[1739457618888,0.3608,95616.0,95607.0,0.2091572]
[1739457619082,0.3608,95616.0,95615.0,0.001]
[1739457619492,0.3608,95616.0,95615.0,0.2101414]
[1739457619693,0.3608,95616.0,95615.0,0.2091414]
[1739457619885,0.3608,95616.0,95605.0,0.2091611]
[1739457620079,0.569943,95615.0,95605.0,0.2091611]
[1739457620290,0.569943,95615.0,95595.0,0.2091849]
[1739457620491,0.569943,95615.0,95589.0,0.2091964]
[1739457620695,0.569943,95615.0,95587.0,0.1418]
[1739457620996,0.18500297,95624.0,95608.0,0.3608]
[1739457621294,0.3608,95645.0,95635.0,0.2090955]
[1739457621479,0.3608,95645.0,95619.0,0.3608]
[1739457621480,0.3608,95645.0,95628.0,0.2091117]
[1739457621685,0.5698767,95645.0,95633.0,0.2091006]
[1739457621882,0.36140001,95645.0,95642.0,0.2090803]
[1739457622086,0.4299,95650.0,95628.0,0.3608]
[1739457622087,0.42487958,95644.0,95634.0,0.2090998]
[1739457622285,0.21580058,95644.0,95625.0,0.3608]
[1739457622485,0.21580058,95644.0,95629.0,0.00015684]
[1739457622486,0.2091071,95631.0,95629.0,0.00015684]
[1739457622895,0.3608,95635.0,95629.0,0.00015684]
[1739457623590,0.3608,95635.0,95634.0,0.001]
[1739457624999,0.3608,95635.0,95629.0,0.00015684]
[1739457625203,0.26666305,95644.0,95641.0,0.2090839]
[1739457626208,0.62746305,95644.0,95634.0,0.001]
[1739457626803,0.26666305,95644.0,95634.0,0.3618]
[1739457627113,0.26666305,95644.0,95636.0,0.2090947]
[1739457627414,0.26666305,95644.0,95629.0,0.00115684]
[1739457627714,0.26666305,95644.0,95641.0,0.2090846]
[1739457628102,0.15715518,95643.0,95641.0,0.2090846]
[1739457629014,0.15715518,95643.0,95641.0,0.2100846]
[1739457629311,0.15715518,95643.0,95641.0,0.2110846]
[1739457631413,0.15715518,95643.0,95642.0,0.59]
[1739457631714,0.24662923,95651.0,95650.0,0.2090649]
[1739457631912,0.24662923,95651.0,95650.0,0.5698649]
[1739457632306,0.01783189,95651.0,95650.0,0.5698649]
[1739457632506,0.00156818,95678.0,95657.0,0.2090496]
[1739457632709,0.00156818,95678.0,95657.0,0.5698496]
[1739457632710,0.03572824,95658.0,95657.0,0.5698496]
[1739457632915,0.00156818,95678.0,95677.0,0.2090059]
[1739457633111,0.00156818,95678.0,95677.0,0.9306059]
[1739457633713,0.24880065,95678.0,95677.0,0.9306059]
[1739457634010,0.24723247,95678.0,95677.0,0.9306059]
[1739457634816,0.24723247,95678.0,95677.0,0.9316059]
[1739457635014,7e-08,95678.0,95677.0,0.9316059]
[1739457635315,7e-08,95678.0,95677.0,0.94745028]
[1739457635512,7e-08,95678.0,95677.0,0.94845028]
[1739457636119,7e-08,95678.0,95677.0,1.24845028]
[1739457636618,7e-08,95678.0,95677.0,0.94845028]
[1739457636814,7e-08,95678.0,95677.0,0.94745028]
[1739457637015,7e-08,95678.0,95677.0,1.24745028]
[1739457638320,7e-08,95678.0,95677.0,0.94745028]
[1739457638630,0.1,95700.0,95691.0,0.2089753]
[1739457638918,0.1,95700.0,95677.0,0.73844438]
[1739457638919,0.4608,95700.0,95679.0,0.2090013]
[1739457639312,0.4608,95700.0,95677.0,0.3618]
[1739457639313,0.4608,95700.0,95688.0,0.2089814]
[1739457639818,0.4608,95700.0,95686.0,0.3608]
[1739457639819,0.2089703,95694.0,95686.0,0.3608]
[1739457640013,0.2089703,95694.0,95691.0,0.001]
[1739457640613,0.2089703,95694.0,95691.0,0.002]
[1739457640808,0.2089703,95694.0,95691.0,0.001]
[1739457641110,0.2089709,95693.0,95691.0,0.001]
[1739457641718,0.2089709,95693.0,95691.0,0.002]
[1739457642121,0.2090046,95678.0,95667.0,0.3608]
[1739457642420,0.2090046,95678.0,95673.0,0.2090142]
[1739457642721,0.3608,95692.0,95667.0,0.3608]
[1739457642920,0.2090219,95670.0,95667.0,0.3608]
[1739457643118,0.2090219,95670.0,95661.0,0.2090403]
[1739457643421,0.2090474,95658.0,95636.0,0.3608]
[1739457643623,0.6608,95658.0,95629.0,0.3608]
[1739457643921,0.3608,95658.0,95643.0,0.3608]
[1739457644117,0.2090588,95653.0,95643.0,0.3608]
[1739457644318,0.3608,95658.0,95643.0,0.3608]
[1739457644620,0.00015625,95660.0,95657.0,0.3608]
[1739457644816,0.20920025,95660.0,95658.0,0.2090474]
[1739457645019,0.00015625,95660.0,95644.0,0.2843]
[1739457645209,0.00015625,95660.0,95643.0,0.3608]
[1739457645210,0.0522616,95659.0,95643.0,0.3608]
[1739457645413,0.2090764,95645.0,95643.0,0.3618]
[1739457645619,0.2090764,95645.0,95643.0,0.3628]
[1739457645924,0.00015625,95660.0,95653.0,0.2090572]
[1739457646117,0.2090504,95657.0,95654.0,0.2090548]
[1739457646317,0.00015625,95660.0,95654.0,0.2090548]
[1739457646318,0.2090524,95656.0,95654.0,0.2090548]
[1739457646518,0.00015625,95660.0,95643.0,0.3628]
[1739457646519,0.00015625,95660.0,95658.0,0.2090463]
[1739457647626,5e-08,95660.0,95658.0,0.5090463]
[1739457647817,5e-08,95660.0,95659.0,0.1471]
[1739457648021,0.00143222,95660.0,95659.0,0.1471]
[1739457648213,0.00143222,95660.0,95659.0,0.4471]
[1739457648524,0.00243222,95660.0,95659.0,0.4471]
[1739457648819,0.001,95660.0,95659.0,0.1471]
[1739457649224,0.2089773,95691.0,95681.0,0.2089952]
[1739457649422,0.2089773,95691.0,95690.0,0.3608]
[1739457649626,0.2089993,95681.0,95679.0,0.3608]
[1739457649919,0.2090059,95677.0,95676.0,0.00015683]
[1739457651128,0.2090059,95677.0,95676.0,0.00215683]
[1739457651326,0.3608,95684.0,95662.0,0.3608]
[1739457651619,0.2090365,95663.0,95662.0,0.3608]
[1739457652416,0.3608,95663.0,95638.0,0.01221]
[1739457652619,0.3608,95648.0,95646.0,0.2090724]
[1739457652818,0.3608,95648.0,95641.0,0.00015683]
[1739457653021,0.2090823,95643.0,95641.0,0.00015683]
[1739457653522,0.3608,95648.0,95641.0,0.00015683]
[1739457653722,0.3608,95648.0,95646.0,0.2090719]
[1739457655332,0.3608,95648.0,95646.0,0.2140719]
[1739457656026,0.3608,95648.0,95646.0,0.2170719]
[1739457656417,0.2090831,95642.0,95638.0,0.00133873]
[1739457656620,0.3608,95639.0,95638.0,0.00133873]
[1739457657924,0.3608,95648.0,95638.0,0.00133873]
[1739457658120,0.3608,95648.0,95647.0,0.2090715]
[1739457659627,0.00015683,95654.0,95653.0,0.2090583]
[1739457660125,0.00015683,95654.0,95653.0,0.7990583]
[1739457660334,0.15375877,95670.0,95653.0,0.89]
[1739457660526,0.15375877,95670.0,95669.0,0.5698234]
[1739457660929,0.15375877,95670.0,95654.0,0.3608]
[1739457661124,0.2090327,95665.0,95657.0,0.2090484]
[1739457661317,0.2090423,95661.0,95654.0,0.3608]
[1739457661523,0.004,95654.0,95653.0,0.003]
[1739457662133,0.2090546,95655.0,95654.0,0.007]
[1739457662323,0.2090546,95655.0,95653.0,0.003]
[1739457662635,0.1398,95654.0,95634.0,0.2090983]
[1739457662824,0.7216,95640.0,95639.0,0.24939795]
[1739457663325,0.3608,95648.0,95639.0,0.24939795]
[1739457663635,0.3608,95648.0,95646.0,0.2090728]
[1739457663836,0.3608,95648.0,95639.0,0.24939795]
[1739457664022,0.3608,95648.0,95639.0,0.25239795]
[1739457664538,0.00015683,95653.0,95652.0,0.2090605]
[1739457665329,0.00015683,95653.0,95652.0,0.5698605]
[1739457666125,0.00015683,95653.0,95652.0,0.5708605]
[1739457666522,0.00015683,95653.0,95652.0,0.001]
[1739457667029,0.00015683,95653.0,95652.0,0.003]
[1739457667225,0.14585683,95653.0,95652.0,0.003]
[1739457667423,0.00015683,95653.0,95652.0,0.003]
[1739457667731,0.00015683,95653.0,95640.0,0.29141592]
[1739457667929,0.00415683,95653.0,95652.0,0.004]
[1739457668229,0.3608,95663.0,95661.0,0.2090409]
[1739457668432,0.3608,95663.0,95650.0,0.29141592]
[1739457668636,0.004,95653.0,95652.0,0.001]
[1739457668831,0.004,95653.0,95652.0,0.2100605]
[1739457669329,0.004,95653.0,95652.0,0.001]
[1739457669727,0.2090577,95654.0,95652.0,0.001]
[1739457670128,0.2090577,95654.0,95641.0,0.2090829]
[1739457670434,0.00015683,95662.0,95646.0,0.3608]
[1739457670733,0.00015683,95662.0,95660.0,0.2090409]
[1739457671032,0.2090445,95660.0,95654.0,0.3608]
[1739457671426,0.00015683,95662.0,95654.0,0.3608]
[1739457671631,0.209054,95655.0,95654.0,0.3608]
[1739457672231,4.101e-05,95658.0,95654.0,0.3608]
[1739457672539,0.2090536,95656.0,95654.0,0.3608]
[1739457673035,4.101e-05,95658.0,95656.0,0.2090502]
[1739457673440,0.2090516,95657.0,95646.0,0.3608]
[1739457673637,4.101e-05,95658.0,95646.0,0.3608]
[1739457673838,0.2090846,95642.0,95638.0,0.21042853]
[1739457674137,0.3608,95648.0,95640.0,0.209086]
[1739457674438,0.3608,95648.0,95642.0,0.2090812]
[1739457674640,0.3608,95648.0,95644.0,0.2090773]
[1739457675035,0.3608,95648.0,95646.0,0.2100724]
[1739457675241,0.5698704,95648.0,95646.0,0.001]
[1739457675442,0.3608,95648.0,95639.0,0.2090879]
[1739457675735,0.2090803,95643.0,95642.0,0.001]
[1739457675939,0.3608,95654.0,95642.0,0.001]
[1739457676138,4.101e-05,95658.0,95646.0,0.001]
[1739457676440,0.2090545,95655.0,95651.0,0.2090621]
[1739457676639,4.101e-05,95658.0,95656.0,0.2090504]
[1739457676842,4.101e-05,95658.0,95656.0,0.1090504]
[1739457678246,4.101e-05,95658.0,95657.0,0.1389]
[1739457678538,0.17581281,95672.0,95671.0,0.209019]
[1739457678737,0.1486,95691.0,95673.0,0.2090141]
[1739457679042,0.1486,95691.0,95671.0,0.3608]
[1739457679043,0.3608,95674.0,95657.0,0.1389]
[1739457679340,0.2090287,95667.0,95657.0,0.1389]
[1739457679645,0.2090341,95665.0,95657.0,0.1389]
[1739457680335,0.002,95658.0,95657.0,0.1389]
[1739457680635,0.004,95658.0,95657.0,0.1389]
[1739457680838,0.002,95658.0,95656.0,0.00015683]
[1739457681039,0.2090496,95657.0,95656.0,0.00015683]
[1739457682448,0.2100496,95657.0,95656.0,0.00015683]
[1739457682745,0.001,95657.0,95656.0,0.00015683]
[1739457686239,0.1378,95682.0,95656.0,0.00015683]
[1739457686438,0.3608,95681.0,95667.0,0.2090277]
[1739457686633,0.2090288,95667.0,95659.0,0.2090435]
[1739457687039,0.2090453,95659.0,95656.0,0.00015683]
[1739457687242,0.3608,95664.0,95656.0,0.00015683]
[1739457687746,0.2090496,95657.0,95656.0,0.00015683]
[1739457688635,0.001,95659.0,95656.0,0.00015683]
[1739457688848,0.001,95659.0,95657.0,0.2090496]
[1739457690133,0.001,95659.0,95656.0,0.00015683]
[1739457690344,0.2090482,95658.0,95656.0,0.00015683]
[1739457690538,0.002,95659.0,95656.0,0.20920853]
[1739457690849,0.002,95659.0,95657.0,0.209049]
[1739457691146,0.002,95659.0,95656.0,0.00015683]
[1739457691147,0.001,95657.0,95656.0,0.00015683]
[1739457691647,0.2090474,95658.0,95656.0,0.00015683]
[1739457692650,0.001,95657.0,95656.0,0.00015683]
[1739457693143,0.3608,95665.0,95664.0,0.2090343]
[1739457693540,0.2090089,95676.0,95658.0,0.59]
[1739457693735,0.2090089,95676.0,95659.0,0.1566]
[1739457694347,0.2090089,95676.0,95671.0,0.209018]
[1739457694735,0.2090089,95676.0,95672.0,0.2090165]
[1739457694939,0.001,95676.0,95674.0,0.2090115]
[1739457695342,0.2100086,95676.0,95674.0,0.2090115]
[1739457695651,0.1824095,95683.0,95668.0,0.2090253]
[1739457695843,0.3608,95673.0,95671.0,0.001]
[1739457696050,0.2090171,95672.0,95671.0,0.001]
[1739457696249,0.006,95676.0,95671.0,0.001]
[1739457696547,0.2220095,95676.0,95674.0,0.001]
[1739457697146,0.2220095,95676.0,95674.0,0.2100118]
[1739457697450,0.2220095,95676.0,95674.0,0.001]
[1739457697749,0.2230095,95676.0,95674.0,0.002]
[1739457698138,0.2090496,95657.0,95656.0,0.00015683]
[1739457698346,0.209035,95664.0,95658.0,0.2090464]
[1739457698540,0.2090397,95662.0,95658.0,0.2090464]
[1739457699343,0.007,95676.0,95658.0,0.2090464]
[1739457699541,0.2090386,95663.0,95661.0,0.2090403]
[1739457699941,0.002,95662.0,95661.0,0.2090403]
[1739457700242,0.002,95662.0,95661.0,0.5698403]
[1739457700842,0.002,95662.0,95661.0,0.2090403]
[1739457701044,0.002,95662.0,95661.0,0.5698403]
[1739457701345,0.004,95662.0,95661.0,0.2090403]
[1739457701537,0.002,95662.0,95661.0,0.2090403]
[1739457702047,0.002,95662.0,95661.0,0.5698403]
[1739457702244,0.005,95662.0,95661.0,0.5698403]
[1739457702743,0.005,95662.0,95661.0,0.2090403]
[1739457704248,0.18547122,95673.0,95659.0,0.3608]
[1739457704456,0.18547122,95673.0,95672.0,0.5698169]
[1739457705342,0.18747122,95673.0,95672.0,0.5698169]
[1739457705655,0.18431439,95673.0,95672.0,0.5698169]
[1739457705948,0.001,95673.0,95672.0,0.3618]
[1739457706149,0.001,95673.0,95672.0,0.5708168]
[1739457706855,0.2089736,95692.0,95686.0,0.208986]
[1739457707151,0.2089736,95692.0,95691.0,0.3608]
[1739457707454,0.2089869,95686.0,95682.0,0.5697949]
[1739457707955,0.3608,95694.0,95679.0,0.00015683]
[1739457708249,0.2089993,95680.0,95679.0,0.00015683]
[1739457709546,0.2089869,95686.0,95685.0,0.2089883]
[1739457709956,0.2089907,95684.0,95682.0,0.2089931]
[1739457710146,0.2089972,95681.0,95680.0,0.3608]
[1739457710655,0.2089972,95681.0,95679.0,0.00115683]
[1739457710954,0.007,95680.0,95651.0,0.3608]
[1739457711246,0.2090277,95667.0,95651.0,0.3608]